Cogmind - Beta 17 @@@ ROGUE MODE // 2026.07.28 @ 21:22:45 Player: Elias Result: Destroyed by G-50 Soldier with Heavy Laser Performance ------------- Evolutions (5) 2500 Regions Visited (5) 1000 Robots Destroyed (55) 275 Value Destroyed (1719) 1719 Prototype IDs (6) 120 Alien Tech Used (0) 0 Bonus (1060) 1060 TOTAL SCORE: 6674 Bonus ------- High Alert Combat Kills 209 Follower Combat Kills 51 Registered with UFD 300 Met Optimus in HQ 500 Cogmind --------- Core Integrity 0/1000 Matter 102/300 Energy 99/100 System Corruption 18% Temperature Cool (9) Movement Core (50) Location -5/Factory Parts ------- > --- POWER (2) -------- (None) > --- PROPULSION (6) --- (None) > --- UTILITY (6) ------ (None) > --- WEAPON (3) ------- (None) > --- INVENTORY (5) ---- Hardened Heavy Armor Plating Peak State ------------ > --- POWER ------------ Fission Core Light Fission Core > --- PROPULSION ------- Armored Treads Overtuned Treads Overtuned Treads Overtuned Treads Overtuned Treads Medium Treads > --- UTILITY ---------- Scrap Suit Advanced Heat Sink Humpback Makeshift Salvage Targeting Computer > --- WEAPON ----------- Makeshift Laser Proton Cannon Heavy Rocket Launcher > --- INVENTORY -------- Neutrino Core Spiked Treads Scrap Suit Improved Heat Sink Experimental Heat Sink Large Storage Unit Improved Sensor Array Improved Signal Interpreter 0b10 Decoder Chip [Generic] Advanced Targeting Computer Improved Target Analyzer Advanced Recoil Stabilizer Improved Kinecellerator Improved Weapon Cycler Light Armor Plating Hardened Heavy Armor Plating Hardened Heavy Armor Plating Hardened Heavy Armor Plating Improved Medium Armor Plating Force Field Point Defense System System Restoration Module Makeshift System Restoration Module Scrapoid Pod CPS Tube CPS Tube Great Maul DRS Beacon [Rating: 74] Favorites ----------- Power Fission Core Engine Ion Engine Power Core Fission Core Propulsion Medium Treads Treads Medium Treads Leg Aluminum Leg Hover Unit Antigrav System Utility Signal Interpreter Device Advanced Heat Sink Storage Medium Storage Unit Processor Signal Interpreter Protection Hardened Heavy Armor Plating Weapon Pulse Rifle Energy Gun Pulse Rifle Energy Cannon Subdweller Beam Cannon Ballistic Gun Heavy Machine Gun Ballistic Cannon Mass Driver Launcher Heavy Rocket Launcher Special Weapon Enhanced Flamer Impact Weapon Great Maul Slashing Weapon Mining Claw Build | -11 -10 -10 -10 -7 -5 ------- Run | Yrd Mat Min Sub Scr Fac Slots Evolved 10 | . . . . . 10 Power 1 | . . . . . 1 Propulsion 4 | . . . . . 4 Utility 4 | . . . . . 4 Weapon 1 | . . . . . 1 Parts Attached 54 | 8 8 . 6 8 24 Power 9 | 1 1 . 2 1 4 Engine 5 | 1 1 . 2 . 1 Core 4 | . . . . 1 3 Reactor . | . . . . . . Propulsion 14 | 2 2 . 1 3 6 Treads 11 | 2 . . 1 3 5 Leg 2 | . 2 . . . . Wheel . | . . . . . . Hover 1 | . . . . . 1 Flight . | . . . . . . Utility 12 | 2 2 . . 2 6 Device 5 | 1 . . . . 4 Storage 4 | 1 1 . . 2 . Processor 2 | . 1 . . . 1 Hackware . | . . . . . . Protection 1 | . . . . . 1 Artifact . | . . . . . . Weapon 19 | 3 3 . 3 2 8 Energy Gun 6 | 2 1 . 1 1 1 Energy Cannon 2 | . . . 1 . 1 Ballistic Gun 4 | 1 1 . 1 1 . Ballistic Cannon 1 | . . . . . 1 Launcher 1 | . . . . . 1 Special Weapon 3 | . 1 . . . 2 Impact Weapon 1 | . . . . . 1 Slashing Weapon 1 | . . . . . 1 Piercing Weapon . | . . . . . . Special Melee Weapon . | . . . . . . Unidentified Prototypes . | . . . . . . Corrupted Parts 1 | . . . . . 1 System Corruption 9 | . . . . . 9 Parts Lost 36 | . 6 . 5 . 25 Power 6 | . 1 . 1 . 4 Propulsion 13 | . 2 . 2 . 9 Utility 4 | . . . . . 4 Weapon 13 | . 3 . 2 . 8 Highest Loss Streak 10 | . 6 . 5 . 10 To Critical Strikes 2 | . . . 1 . 1 Average Backups 14 | 1 6 6 9 14 23 Power . | . . . . . . Propulsion 1 | . 1 1 1 2 1 Utility 8 | . 1 3 4 7 16 Weapon 2 | 1 1 2 2 2 2 Tool/Special . | . . . . . . Unused Backups 25 | . . . 1 4 20 Power . | . . . . . . Propulsion 2 | . . . . 2 . Utility 20 | . . . . 2 18 Weapon 2 | . . . 1 . 1 Tool/Special 1 | . . . . . 1 Average Slot Usage (%) 89 | . 94 100 94 92 72 Engine 3 | . 12 14 13 1 1 Core 9 | . . . . 12 7 Treads 22 | . 20 . 1 26 24 Leg 3 | . 5 28 23 . . Device 1 | . 4 . . . 9 Storage 12 | . 14 14 14 14 4 Processor 8 | . 9 14 14 8 4 Energy Gun 12 | . 13 14 13 14 7 Energy Cannon 3 | . . . 2 5 . Ballistic Gun 7 | . 8 14 11 8 . Peak Build Rating 74 | 9 9 7 11 33 74 Average Rating 28 | 6 7 7 8 24 61 On Entrance 11 | . 9 7 7 11 33 Avg Prop Armor Cover (%) . | . . . . . . Naked Turns 33 | . . . . . 33 Heaviest Build 257 | 14 18 17 26 218 257 Greatest Support 120 | 40 40 20 20 48 120 Greatest Overweight (x) 82 | . 1 . 7 4 82 Average Overweight (x) . | . . . . . 1 Largest Inventory Capacity 35 | 8 10 10 10 35 35 Average Capacity 20 | 7 9 10 10 20 32 Most Carried 35 | 5 8 6 10 32 35 Average Carried 16 | 1 6 6 9 16 28 Final Capacity 35 | 8 10 10 10 35 5 Final Carried 32 | 5 6 6 9 32 2 Scrap Suit Usage (%) 10 | . . . . . 55 Parts Cannibalized 6 | . . . . . 6 Class Distribution -------------------- 57% | Mutant 30% | Hauler-Mutant 6% | Derelict-Scrapper 4% | Hauler-Scrapper Dominant Class ---------------- Mutant | -10/Materials Mutant | -10/Mines Mutant | -10/Subcaves Mutant | -7/Scraptown Derelict-Scrapper | -5/Factory Resources | -11 -10 -10 -10 -7 -5 ----------- Run | Yrd Mat Min Sub Scr Fac Matter Collected 1279 | 297 108 6 114 106 648 Remotely . | . . . . . . Salvage Created 1674 | 151 164 41 70 . 1248 Parts 96 | 13 11 4 4 . 64 Haulers Intercepted 1 | . . . . . 1 Recyclers Shooed 1 | . 1 . . . . Parts Field Recycled . | . . . . . . Retrieved Matter . | . . . . . . Parts Self-Destructed . | . . . . . . Prevented . | . . . . . . Parts Restored . | . . . . . . Kills | -11 -10 -10 -10 -7 -5 ------- Run | Yrd Mat Min Sub Scr Fac Combat Hostiles Destroyed 35 | . 8 3 2 . 22 Guns 17 | . 8 3 1 . 5 Cannons 3 | . . . . . 3 AOE 11 | . . . . . 11 Classes Destroyed 11 | 2 2 . 1 . 6 Worker 4 | . . . . . 4 Builder 8 | . . . . . 8 Tunneler 5 | 4 . . . . 1 Hauler 1 | . . . . . 1 Recycler 2 | 1 . . . . 1 Swarmer 14 | . 6 3 . . 5 Grunt 9 | . 2 . . . 7 Sentry 1 | . . . . . 1 Hunter 2 | . . . . . 2 Programmer 7 | . . . . . 7 Subdweller 2 | . . . 2 . . Best Kill Streak 14 | 5 6 3 1 . 14 Combat Bots Only 6 | . 6 3 1 . 5 Max Kills in Single Turn 6 | 1 2 1 1 . 6 Gunslinging 1 | . 1 . . . . Exploded 5 | . . . . . 5 Melee . | . . . . . . Uniques/NPCs Destroyed . | . . . . . . Combat | -11 -10 -10 -10 -7 -5 -------- Run | Yrd Mat Min Sub Scr Fac Hostile Shots Fired 415 | . 97 14 27 4 273 Missed 92 | . 16 1 4 1 70 Hits 323 | . 81 13 23 3 203 Melee 1 | . . . . 1 . Projectile 322 | . 81 13 23 2 203 Critical Strikes 15 | . . . 1 . 14 Part Disruptions 4 | . . . . . 4 Damage Taken 6235 | . 694 108 512 66 4855 Core 1205 | . 81 15 69 34 1006 Absorbed by Shields . | . . . . . . Regen/Repaired (Parts) 51 | . . . . . 51 Core Remaining (%) 60 | 100 . . . 20 . Volleys Fired 145 | 17 36 6 36 . 50 Largest 3 | 2 2 2 2 . 3 Hottest 193 | 70 100 60 120 . 193 Shots Fired 295 | 32 63 12 51 . 137 Gun 236 | 32 59 12 42 . 91 Cannon 36 | . . . 9 . 27 Launcher 13 | . . . . . 13 Special 10 | . 4 . . . 6 Kinetic 106 | 17 30 6 27 . 26 Thermal 155 | 13 31 6 24 . 81 Explosive 13 | . . . . . 13 Electromagnetic 21 | 2 2 . . . 17 Robot Hit Streak 31 | 5 6 5 11 . 31 Robot Miss Streak 4 | 4 4 2 1 . 3 Penetration Max . | . . . . . . Secondary Targets 3 | . 2 1 . . . Max Gunslinging Chain 1 | . 1 1 . . . Shots Hit Robots 180 | 21 35 8 27 . 89 Core Hits 100 | 7 14 3 5 . 71 Critical Kills 1 | . . . 1 . . Critical Parts Destroyed 1 | 1 . . . . . Critical Strikes 13 | 2 1 . 1 . 9 Burn 11 | 1 1 . . . 9 Meltdown 1 | . . . 1 . . Destroy 1 | 1 . . . . . Melee Attacks 16 | . . . . . 16 Impact 15 | . . . . . 15 Slashing 1 | . . . . . 1 Piercing . | . . . . . . Sneak Attacks . | . . . . . . Combat Hostiles . | . . . . . . Follow-up Attacks . | . . . . . . Damage Inflicted 5515 | 216 365 95 380 7 4452 Guns 2083 | 216 361 81 157 . 1268 Cannons 666 | . . . 223 . 443 Explosions 2648 | . . . . . 2648 Melee . | . . . . . . Ramming 76 | . 4 14 . 7 51 Kinetic 899 | 104 152 24 62 . 557 Thermal 1721 | 100 187 57 318 . 1059 Explosive 2444 | . . . . . 2444 Electromagnetic 375 | 12 22 . . . 341 Impact . | . . . . . . Slashing . | . . . . . . Piercing . | . . . . . . Highest Corruption 18 | . . . . . 18 Average Corruption 5 | . . . . . 5 Corruption Purged . | . . . . . . Corruption Blocked . | . . . . . . Effects 34 | . . . . . 34 Message Errors 5 | . . . . . 5 Matter Fused 8 | . . . . . 8 Heat Flow Errors 3 | . . . . . 3 Energy Discharges 4 | . . . . . 4 Parts Rejected 1 | . . . . . 1 Parts Fused 1 | . . . . . 1 Data Loss (minor) 6 | . . . . . 6 Data Loss (major) 2 | . . . . . 2 Misfires 2 | . . . . . 2 Alerts 1 | . . . . . 1 Weapon Failures 1 | . . . . . 1 Overload Shots . | . . . . . . Overflow Damage 258 | . . . . . 258 Projectiles 8 | . . . . . 8 Explosions 239 | . . . . . 239 Melee 11 | . . . . . 11 Knockbacks 6 | . 1 . . . 5 Impact 2 | . 1 . . . 1 Kinetic 4 | . . . . . 4 Secondary . | . . . . . . Self-Inflicted Damage 206 | . . . . . 206 Shots 4 | . . . . . 4 Rammed 2 | . . . . 1 1 Targets Rammed 5 | . 2 1 . 1 1 Kicked 3 | . 2 1 . . . Crushed . | . . . . . . Highest Temperature 308 | 160 308 40 3 . 262 Average Temperature 79 | 68 131 17 3 . 51 Received Heat Transfer 594 | . 60 . 36 12 486 Effects 3 | . 3 . . . . Energy Bleed 1 | . 1 . . . . Interference 2 | . 2 . . . . Siege Activations . | . . . . . . Martial Activations . | . . . . . . Shielding Activations . | . . . . . . Robots Disrupted . | . . . . . . Combat Hostiles . | . . . . . . Robots Corrupted 1 | . . . . . 1 Combat Hostiles 1 | . . . . . 1 Parts Fried 1 | . . . . . 1 Impact Corruptions 1 | . . . . . 1 Robots Melted 4 | . . . 1 . 3 Combat Hostiles 3 | . . . 1 . 2 Parts Melted 16 | 1 1 . 1 . 13 Heat Transferred 4691 | 370 629 125 521 . 3046 Parts Sabotaged . | . . . . . . Parts Stolen . | . . . . . . Parts Stripped . | . . . . . . Power Chain Reactions 1 | . . . . . 1 Alert | -11 -10 -10 -10 -7 -5 ------- Run | Yrd Mat Min Sub Scr Fac Maximum Alert Level 3 | . . . . . 3 Low Security (%) 62 | 100 100 100 . . 42 Level 1 2 | . . . . . 3 Level 2 31 | . . . . . 48 Level 3 3 | . . . . . 5 Level 4 . | . . . . . . Level 5 . | . . . . . . High Security . | . . . . . . Max Security . | . . . . . . Peak Influence 730 | 15 125 169 . . 730 Initial 25 | . . 25 . . . Average 244 | 2 33 97 . . 351 Influence Increases 1676 | 25 227 224 . . 1200 Destroy 0b10 Robot/C 780 | . 160 180 . . 440 Destroy 0b10 Robot/NC 100 | 25 . . . . 75 Destroy Leader 162 | . 30 30 . . 102 Allied During Kill 14 | . . 14 . . . Successful Hack 5 | . 5 . . . . Disable Machine 300 | . 15 . . . 285 Destroy Structure 210 | . 2 . . . 208 Partial Spotted 15 | . 15 . . . . Lose Combat Pursuer 90 | . . . . . 90 Influence Decreases 1149 | 25 160 212 79 . 673 Entered New Map 84 | . . 42 42 . . Time Decay 745 | 25 100 150 37 . 433 Lost Part 300 | . 60 . . . 240 Lost Ally 20 | . . 20 . . . Squads Dispatched 11 | . 1 . . . 10 Investigation . | . . . . . . Extermination 2 | . . . . . 2 Reinforcement 8 | . 1 . . . 7 Assault 1 | . . . . . 1 Garrison . | . . . . . . Intercept . | . . . . . . Searches Triggered . | . . . . . . Construction Impeded 2 | . . . . . 2 Haulers Reinforced 2 | . . . . . 2 Active Scanning Responses . | . . . . . . Cargo Convoy Interrupts . | . . . . . . Stealth | -11 -10 -10 -10 -7 -5 --------- Run | Yrd Mat Min Sub Scr Fac Distress Signals . | . . . . . . Communications Jammed . | . . . . . . Distress Signals . | . . . . . . Times Spotted 71 | . 9 4 4 11 43 Peak Tracking Total 10 | . 6 3 2 3 10 Tactical Retreats 6 | . . . . . 6 Traps | -11 -10 -10 -10 -7 -5 ------- Run | Yrd Mat Min Sub Scr Fac Traps Triggered 1 | . . . . . 1 Indirectly . | . . . . . . Trap Hack Attempts . | . . . . . . Triggered . | . . . . . . Disarmed . | . . . . . . Reprogrammed . | . . . . . . Reused . | . . . . . . Traps Extracted . | . . . . . . Installed . | . . . . . . Triggered . | . . . . . . Machines | -11 -10 -10 -10 -7 -5 ---------- Run | Yrd Mat Min Sub Scr Fac Machines Disabled 20 | . 1 . . . 19 Max in Single Turn 6 | . 1 . . . 6 Machines Repaired . | . . . . . . Machines Dismantled . | . . . . . . Machines Sabotaged . | . . . . . . Overloaded Fab Kills . | . . . . . . Hacking | -11 -10 -10 -10 -7 -5 --------- Run | Yrd Mat Min Sub Scr Fac Machines Accessed 10 | . 3 . . 7 . Terminals 3 | . 3 . . . . Fabricators . | . . . . . . Repair Stations . | . . . . . . Recycling Units . | . . . . . . Scanalyzers . | . . . . . . Garrison Access . | . . . . . . Total Hacks 68 | . 3 . . 65 . Successful 67 | . 2 . . 65 . Failed 1 | . 1 . . . . Catastrophic . | . . . . . . Database Lockouts . | . . . . . . Manual 3 | . 3 . . . . Terminals 3 | . 3 . . . . Fabricators . | . . . . . . Repair Stations . | . . . . . . Recycling Units . | . . . . . . Scanalyzers . | . . . . . . Garrison Access . | . . . . . . Terminal Hacks 65 | . . . . 65 . Record 65 | . . . . 65 . Fabricator Hacks . | . . . . . . Repair Station Hacks . | . . . . . . Recycling Unit Hacks . | . . . . . . Scanalyzer . | . . . . . . Garrison Access Hacks . | . . . . . . Unauthorized Hacks 2 | . 2 . . . . Terminals 2 | . 2 . . . . Track 1 | . 1 . . . . Botnet 1 | . 1 . . . . Fabricators . | . . . . . . Repair Stations . | . . . . . . Recycling Units . | . . . . . . Scanalyzers . | . . . . . . Garrison Access . | . . . . . . Data Cores Recovered . | . . . . . . Used . | . . . . . . Hacking Detections 1 | . 1 . . . . Full Trace Events . | . . . . . . Feedback Events . | . . . . . . Feedback Blocked . | . . . . . . Robot Schematics Acquired . | . . . . . . Robots Built . | . . . . . . Authchips . | . . . . . . Time . | . . . . . . Total Robot Build Rating . | . . . . . . Part Schematics Acquired . | . . . . . . Parts Built . | . . . . . . Authchips . | . . . . . . Time . | . . . . . . Total Part Build Rating . | . . . . . . Part Studies Acquired . | . . . . . . Parts Repaired . | . . . . . . Time . | . . . . . . Parts Recycled . | . . . . . . Recycled Matter . | . . . . . . Retrieved Matter . | . . . . . . Retrieved Components . | . . . . . . Parts Scanalyzed . | . . . . . . Part Schematics Acquired . | . . . . . . Parts Damaged . | . . . . . . Bothacking | -11 -10 -10 -10 -7 -5 ------------ Run | Yrd Mat Min Sub Scr Fac Used RIF Installer . | . . . . . . Robots Hacked . | . . . . . . Non-combat . | . . . . . . Combat . | . . . . . . Robot Hacks Applied . | . . . . . . Relay Couplers Released . | . . . . . . Fabnet Peak Effective % . | . . . . . . Robots Rewired . | . . . . . . Allies Hacked . | . . . . . . Hacks Repelled . | . . . . . . Allies | -11 -10 -10 -10 -7 -5 -------- Run | Yrd Mat Min Sub Scr Fac Total Allies 3 | . . 3 . . . Largest Group 3 | . . 3 2 . . Highest-Rated Group 40 | . . 40 24 . . Highest-Rated Ally 16 | . . 16 16 . . Initial UFD Resources 39 | . . . . . 39 Total Orders 8 | . . 7 1 . . ROAM 3 | . . 3 . . . FOLLOW 2 | . . 2 . . . GUARD 2 | . . 1 1 . . AID 1 | . . 1 . . . Ally Attacks 28 | . . 12 16 . . Total Damage 288 | . . 102 186 . . Kills 7 | . . 6 1 . . Allies Corrupted . | . . . . . . Allies Melted 2 | . . . . 2 . Intel | -11 -10 -10 -10 -7 -5 ------- Run | Yrd Mat Min Sub Scr Fac Active Infowar (turns) 145 | 50 95 . . . . Terrain 145 | 50 95 . . . . Robot Analysis Total . | . . . . . . Derelict Logs Recovered 3 | . . . 1 2 . Drone Launches . | . . . . . . Drone Recoveries . | . . . . . . Exploration | -11 -10 -10 -10 -7 -5 ------------- Run | Yrd Mat Min Sub Scr Fac Turns Passed 8251 | 165 356 304 826 5098 1502 Spaces Moved 3664 | 68 153 195 534 2165 549 Core 90 | 5 . . 7 . 78 Treads 2790 | 63 108 . 27 2165 427 Legs 740 | . 45 195 500 . . Wheels . | . . . . . . Hover 44 | . . . . . 44 Flight . | . . . . . . Fastest Speed 50 | 50 120 120 120 160 50 Average Speed 201 | 151 151 120 130 227 212 Slowest Speed 4150 | 160 190 120 400 485 4150 Overloaded Moves . | . . . . . . Propulsion Burnouts . | . . . . . . Robots Hopped . | . . . . . . Potential Cave-ins . | . . . . . . Cave-ins Triggered . | . . . . . . Exploration Rate (%) 37 | 5 38 42 32 91 15 Regions Visited 5 Branch Regions 3 Pre-discovered Areas 3 | . . . 1 2 . Known Exits Taken 4 | . 1 1 1 1 . Unknown Exits Taken 1 | 1 . . . . . Scrap Searched 5 | . . . 2 3 . Spaces Dug 14 | . . . . . 14 Terrain Destroyed 126 | . 2 . . . 124 Melee 14 | . . . . . 14 Projectile 7 | . 2 . . . 5 AOE 105 | . . . . . 105 Terrain Rammed . | . . . . . . Walls Destroyed . | . . . . . . Machines Disabled . | . . . . . . Actions | -11 -10 -10 -10 -7 -5 --------- Run | Yrd Mat Min Sub Scr Fac Total 4253 | 99 209 254 616 2337 738 Wait 248 | . . 53 32 100 63 Move 3660 | 67 152 194 533 2165 549 Hop . | . . . . . . Pick Up 82 | 6 7 . 8 41 20 Fast Attach 10 | 6 . . . 2 2 Attach 36 | 2 7 . 4 . 23 Detach 2 | 1 . . . . 1 Swap 22 | . 4 . 2 6 10 Drop 28 | . 1 . 1 23 3 Fire 145 | 17 36 6 36 . 50 Melee 16 | . . . . . 16 Ram . | . . . . . . Kick 3 | . 2 1 . . . Crush 1 | . . . . . 1 Escape Stasis . | . . . . . . Rewire . | . . . . . . Trap . | . . . . . . Miscellaneous . | . . . . . . Route ------- -11/Scrapyard -10/Materials -10/Mines (discovered 2 exits: *Mat / *Sub) -10/Subcaves -7/Scraptown (discovered 2 exits: *Fac x2) -5/Factory History --------- Turn | Location | Event 9 | -11/Scrapyard | Discovered new exit (range 16) 166 | -11/Scrapyard | Entered Materials 302 | -10/Materials | Build established: Mutant 480 | -10/Materials | Lost 6 parts (1p2n3w) 486 | -10/Materials | Discovered new exit (range 12) 498 | -10/Materials | Identified exit to Mines 522 | -10/Materials | Entered Mines 556 | -10/Mines | Assisted by bots powering up and referring to "LRC-V3" 599 | -10/Mines | Discovered new exit (range 6) 605 | -10/Mines | Identified exit to Materials 611 | -10/Mines | Met a Derelict bent on vengeance 807 | -10/Mines | Discovered new exit (range 4) 824 | -10/Mines | Identified exit to Subcaves 826 | -10/Mines | Entered Subcaves 826 | -10/Subcaves | Accompanied by 2 allies 827 | -10/Subcaves | Approached by a straggling Scientist 909 | -10/Subcaves | Visited triangular shrine 916 | -10/Subcaves | Found Prototype Device 945 | -10/Subcaves | Learned location of Zion (-6) 945 | -10/Subcaves | Met a Zionite searching for "candidates" 1033 | -10/Subcaves | A swath of the cavern ceiling suddenly collapsed 1440 | -10/Subcaves | Shifting Twisted Machinery released Sub. Power Source 1441 | -10/Subcaves | Shifting Twisted Machinery released Sub. Beam Cannon 1528 | -10/Subcaves | Core integrity fell below 50% 1576 | -10/Subcaves | Lost 5 parts (1p2n2w) 1641 | -10/Subcaves | Identified exit to Scraptown 1652 | -10/Subcaves | Entered Scraptown 1897 | -7/Scraptown | Delivered Prototype Device to T0-NE2 in exchange for information 2255 | -7/Scraptown | Discovered new exit (range 5) 2271 | -7/Scraptown | Identified exit to Factory 2499 | -7/Scraptown | Scanned Subdweller tech in exchange for log data 2504 | -7/Scraptown | Learned location of Extension (-5) 2506 | -7/Scraptown | Learned Factory terminal intel 2546 | -7/Scraptown | Visited Cyclists 2642 | -7/Scraptown | Heard Great Nut preacher, LISTEN AND RECITE! 2643 | -7/Scraptown | Visited Spacefarers 2722 | -7/Scraptown | Visited CPS Storage 3107 | -7/Scraptown | Visited Comm Corps 3194 | -7/Scraptown | Visited UFD Registry 3218 | -7/Scraptown | Registered with UFD as "Protolauncher" 3240 | -7/Scraptown | Visited SPCMW 3320 | -7/Scraptown | Entered Cyclist Reading Room 3579 | -7/Scraptown | Visited Assassins FH 3683 | -7/Scraptown | Visited Scrapoid Pod Storage 3824 | -7/Scraptown | Guru changed UFD alias to "Powerdome" 4196 | -7/Scraptown | Found Scrapoid Pod 4224 | -7/Scraptown | Visited LU-1G1's Boring Crew 4522 | -7/Scraptown | Visited Derelict Rescue Squad 4535 | -7/Scraptown | Found DRS Beacon 4563 | -7/Scraptown | Visited DA-N13 Charitable Foundation 4590 | -7/Scraptown | Found DCF Scrap (29 items) 4887 | -7/Scraptown | Visited Abandonware Association 4936 | -7/Scraptown | Learned abandonware demo "OVRCLOCK.EXE" 4942 | -7/Scraptown | Build established: Hauler-Mutant 4955 | -7/Scraptown | Learned abandonware demo "REVENGE.EXE" 4955 | -7/Scraptown | Learned abandonware demo "MELTYB.EXE" 5266 | -7/Scraptown | Found Scrap Suit 5271 | -7/Scraptown | Found Scrap Suit 5442 | -7/Scraptown | Discovered exit to Factory (range 5) 5631 | -7/Scraptown | Visited Science Testing Area 5743 | -7/Scraptown | Visited Infowarlord's Domain 5894 | -7/Scraptown | Visited Curators Association 6263 | -7/Scraptown | Met Optimus 6263 | -7/Scraptown | Accepted into 0bPrime 6663 | -7/Scraptown | Civil war broke out across Scraptown 6719 | -7/Scraptown | Lost 3 allies 6750 | -7/Scraptown | Entered Factory 6750 | -5/Factory | Evolved 10 slots: Power x1, Propulsion x4, Utility x4, Weapon x1 6751 | -5/Factory | Loaded intel: 28 terminal locations 7051 | -5/Factory | Build established: Derelict-Scrapper 7547 | -5/Factory | Lost 3 parts (1p1n1w) 7591 | -5/Factory | Build established: Hauler-Scrapper 7825 | -5/Factory | Lost 3 parts (2n1w) 7950 | -5/Factory | First assault squad dispatched 8092 | -5/Factory | Build established: Hauler-Mutant 8164 | -5/Factory | Lost 10 parts (2p1n3u4w) 8208 | -5/Factory | System corruption reached 10% 8230 | -5/Factory | Core integrity fell below 50% 8249 | -5/Factory | Core integrity fell below 20% 8252 | -5/Factory | Destroyed by G-50 Soldier with Heavy Laser Last Messages --------------- 08206_ Acquired Corrupted Mining Claw. 08207_ Integrated Corrupted Mining Claw (+9). [Achievement: A Problem For Future Me] 08211_ System corrupted: Matter fused (-5). 08216_ Acquired 70 matter. 08221_ Scrapoid Pod destroyed. 08225_ Penetrated by Slug. 08226_ System corrupted: Mining Claw fused. 08226_ Discarded Mining Claw. 08229_ Antigrav System destroyed. 08229_ Critical hit (Blast). 08229_ Knocked back. 08239_ Acquired 1 matter. 08243_ C-45 Heavy ARC bursts open, deploying its payload. 08243_ G-67 Veteran unfolds itself. 08243_ G-50 Soldier unfolds itself. 08243_ I-47 Archangel unfolds itself. 08245_ K-01 Serf collects debris. 08248_ M-28 Smith repairs K-01 Serf. 08250_ K-01 Serf collects debris. Map ----- +----------------------------------------------------+ | ?????????????????????????????????????# ????# | | ?????????????????????????????????????# ???# | | ?????????????????????????????????????# #### | | ?????????????????????????????????????# ! | | ?????????????????????????????????????# % | | ?????????????????????????????????????# | | ??????????????????????????????????? "" | | ???????????????????????????????????""" = """ | | ???????????????????????????????????"T """" | | ?????????????????????????T?????????""" """" | | ????????????????????????????????????"" """" | | ?????????????????????????????????????# | | ?????????????????????????????????????# | | ?????????????????????????????????????# | | ##????????????????????????????????? | | #????????????????????????????????? ####### | | #????????????????????????????????? ????# | | #?????????????????????????????????" """ ""??# | | #???????????????????????????????????""" ""??# | | ##??????????????????????????????????""" T"??# | | ##????????????????????????????????? ""??# | | #????????????????????????????????"" """ ""??# | | ##??????????????????????????? """ """ ####### | | #######????????????????????? """ """ # | | ## ##################### # """ " | | g @ k # """ " | | " mgg # """ " | | kg%i x x + " | | ## #################+### # " | | ########??????#! ???# # | | "##########???# ????# # | | #???# ????# ####### | | ! #???# ????? # #???? | | ##?## ????? # #???? | | ##############?## % # #???? | | = = # #? # #???? | | #########"# " #?## % !# #???? | | #! ! #= " ### % %# ??? | | # ! # " " # |# ?? | | # # " " !! # # """"? | | # %# !! / % %# """"" | | # # """" ! # % + """"" | | " % # """" # # """?? | | " # """" # # #### ?? | | # # """" | # # ######? | | + # # # """ ??? | | # # ## ## """ ?? | | " ############## ## """ ? | | # #????????????# ! ! ## ? | | # #????????????# ! ! ## ? | +----------------------------------------------------+ Best States ------------- Heat Dissipation 59 Energy Generation 32 Energy Capacity 500 Matter Stores 300 Matter Capacity 300 Sight Range 16 Terrain Scan Range 16 Terrain Scan Density 10 Armor Coverage 600 Evasion (%) 55 Recoil Reduction 6 Salvage Targeting 4 Item Schematics ----------------- None Robot Schematics ------------------ None Fabricated ------------ Nothing Repaired ---------- Nothing Studied --------- None Alien Tech Used ----------------- None Achievements -------------- A Problem For Future Me Bob, First Of His Name Civilization 2243 Link The Feds Longdome?! Packrat Tank Uncivil War Challenges ------------ None Game ------ Seed GammaActiveSuit Manual? 0 Play Time 01:23:04 Cumulative 45.1 hours Start 2026.07.26 @ 21:49:47 End 2026.07.28 @ 21:22:45 Sessions 3 Manual Loads 0 Difficulty Rogue Special Mode None Game No. 73 Rogue 73 Adventurer 0 Explorer 0 Win Type - Total 0 Types 0/0/0/0/0/0/0/0/0/0 Lore% 35 Gallery% 35 Achievement% 21 Wizard Run 0 Options --------- Layout 0 ASCII 0 Keyboard 0 Movement Mouse Keybinds 0 Fullscreen 1 Font 18/SmallcapsGlow Map View 76x50 Zoom Use 0% Tactical HUD 1 Map Filters NONE Filters NONE Steam 1 RUN: 190fd9db-1ef1-4266-bfc3-50f4ae78c325